[Event "Titled Tuesday Blitz February 22 Early 2022"]
[White "Kobo, Ori"]
[Black "Krylov, Ivan"]
[WhiteFideId "2812320"]
[BlackFideId "24128066"]
[WhiteElo "2420"]
[BlackElo "2258"]
[Result "1-0"]
[Round "01"]
[TimeControl "180+1"]
[Date "2022.02.22"]
[WhiteClock "0:00:13"]
[BlackClock "0:00:09"]

1. Nc3 {[%clk 0:03:00]}  d5 {[%clk 0:02:59]} 2. d4 {[%clk 0:03:00]}  Nf6 {[%clk 0:02:59]} 3. Bf4 {[%clk 0:03:00]}  c5 {[%clk 0:02:58]} 4. e4 {[%clk 0:03:00]}  dxe4 {[%clk 0:02:38]} 5. dxc5 {[%clk 0:03:00]}  Bd7 {[%clk 0:02:33]} 6. Nge2 {[%clk 0:02:51]}  Nc6 {[%clk 0:02:27]} 7. Ng3 {[%clk 0:02:49]}  e5 {[%clk 0:02:10]} 8. Be3 {[%clk 0:02:48]}  Rc8 {[%clk 0:01:41]} 9. Ngxe4 {[%clk 0:02:34]}  Nxe4 {[%clk 0:01:40]} 10. Nxe4 {[%clk 0:02:35]}  Be7 {[%clk 0:01:32]} 11. Nd6+ {[%clk 0:02:30]}  Bxd6 {[%clk 0:01:32]} 12. Qxd6 {[%clk 0:02:30]}  Be6 {[%clk 0:01:17]} 13. Qxd8+ {[%clk 0:02:19]}  Rxd8 {[%clk 0:01:17]} 14. c3 {[%clk 0:02:19]}  O-O {[%clk 0:01:14]} 15. Be2 {[%clk 0:01:46]}  f5 {[%clk 0:01:14]} 16. f3 {[%clk 0:01:46]}  a6 {[%clk 0:01:09]} 17. b4 {[%clk 0:01:38]}  Ne7 {[%clk 0:01:08]} 18. Bf2 {[%clk 0:01:24]}  f4 {[%clk 0:01:04]} 19. a4 {[%clk 0:01:21]}  Nf5 {[%clk 0:00:57]} 20. Rd1 {[%clk 0:01:20]}  Bb3 {[%clk 0:00:54]} 21. Ra1 {[%clk 0:01:00]}  Rfe8 {[%clk 0:00:40]} 22. O-O {[%clk 0:00:55]}  g5 {[%clk 0:00:37]} 23. Rfb1 {[%clk 0:00:52]}  Bc2 {[%clk 0:00:32]} 24. Rb2 {[%clk 0:00:52]}  Bd3 {[%clk 0:00:30]} 25. Re1 {[%clk 0:00:48]}  Bxe2 {[%clk 0:00:29]} 26. Rbxe2 {[%clk 0:00:48]}  Rd3 {[%clk 0:00:23]} 27. Rxe5 {[%clk 0:00:43]}  Rxe5 {[%clk 0:00:21]} 28. Rxe5 {[%clk 0:00:44]}  Ne3 {[%clk 0:00:20]} 29. Rxg5+ {[%clk 0:00:38]}  Kf7 {[%clk 0:00:17]} 30. Bxe3 {[%clk 0:00:34]}  fxe3 {[%clk 0:00:16]} 31. Kf1 {[%clk 0:00:35]}  Rxc3 {[%clk 0:00:16]} 32. Rh5 {[%clk 0:00:31]}  Kg6 {[%clk 0:00:15]} 33. Rd5 {[%clk 0:00:28]}  Rb3 {[%clk 0:00:15]} 34. Rd4 {[%clk 0:00:18]}  Rb2 {[%clk 0:00:15]} 35. Re4 {[%clk 0:00:18]}  Rb3 {[%clk 0:00:12]} 36. Ke2 {[%clk 0:00:17]}  Kf6 {[%clk 0:00:11]} 37. h4 {[%clk 0:00:15]}  Kg6 {[%clk 0:00:11]} 38. g4 {[%clk 0:00:15]}  Kf6 {[%clk 0:00:10]} 39. f4 {[%clk 0:00:14]}  Kg6 {[%clk 0:00:10]} 40. f5+ {[%clk 0:00:14]}  Kg7 {[%clk 0:00:10]} 41. Re7+ {[%clk 0:00:13]}  Kf6 {[%clk 0:00:10]} 42. Re6+ {[%clk 0:00:14]}  Kf7 {[%clk 0:00:10]} 43. Rb6 {[%clk 0:00:15]}  Ra3 {[%clk 0:00:09]} 44. Rxb7+ {[%clk 0:00:12]}  Kg8 {[%clk 0:00:10]} 45. b5 {[%clk 0:00:11]}  Rxa4 {[%clk 0:00:10]} 46. c6 {[%clk 0:00:11]}  axb5 {[%clk 0:00:08]} 47. c7 {[%clk 0:00:12]}  Rc4 {[%clk 0:00:08]} 48. Rb8+ {[%clk 0:00:12]}  Kg7 {[%clk 0:00:08]} 49. c8=Q {[%clk 0:00:13]}  Rxc8 {[%clk 0:00:09]} 50. Rxc8 {[%clk 0:00:13]} 1-0


[Site "https://www.chess.com"]

[Event "Titled Tuesday Blitz February 22 Early 2022"]
[White "Kornyukov, Alexey"]
[Black "Volkov, Maksim"]
[WhiteFideId "4150457"]
[BlackFideId "54123070"]
[WhiteElo "2303"]
[BlackElo "2081"]
[Result "0-1"]
[Round "01"]
[TimeControl "180+1"]
[Date "2022.02.22"]
[WhiteClock "0:00:42"]
[BlackClock "0:01:02"]

1. e4 {[%clk 0:03:00]}  c5 {[%clk 0:02:59]} 2. c3 {[%clk 0:03:00]}  Nf6 {[%clk 0:02:57]} 3. e5 {[%clk 0:03:00]}  Nd5 {[%clk 0:02:57]} 4. d4 {[%clk 0:03:00]}  cxd4 {[%clk 0:02:57]} 5. cxd4 {[%clk 0:03:00]}  d6 {[%clk 0:02:56]} 6. Nf3 {[%clk 0:02:59]}  Nc6 {[%clk 0:02:56]} 7. exd6 {[%clk 0:02:56]}  Qxd6 {[%clk 0:02:46]} 8. Nc3 {[%clk 0:02:55]}  e6 {[%clk 0:02:46]} 9. Bd3 {[%clk 0:02:54]}  Be7 {[%clk 0:02:42]} 10. O-O {[%clk 0:02:53]}  O-O {[%clk 0:02:39]} 11. Nb5 {[%clk 0:02:53]}  Qd8 {[%clk 0:02:36]} 12. Nc3 {[%clk 0:02:51]}  b6 {[%clk 0:02:31]} 13. Qc2 {[%clk 0:02:50]}  f5 {[%clk 0:02:10]} 14. Nxd5 {[%clk 0:02:48]}  Qxd5 {[%clk 0:02:10]} 15. Bc4 {[%clk 0:02:47]}  Qd6 {[%clk 0:02:08]} 16. Rd1 {[%clk 0:02:44]}  Na5 {[%clk 0:02:05]} 17. Bb3 {[%clk 0:02:39]}  Bb7 {[%clk 0:02:01]} 18. Qe2 {[%clk 0:02:36]}  Nxb3 {[%clk 0:01:56]} 19. axb3 {[%clk 0:02:36]}  a5 {[%clk 0:01:53]} 20. Re1 {[%clk 0:02:32]}  Bd5 {[%clk 0:01:52]} 21. Ne5 {[%clk 0:02:22]}  Bxb3 {[%clk 0:01:48]} 22. Bf4 {[%clk 0:02:23]}  Qxd4 {[%clk 0:01:38]} 23. Nc6 {[%clk 0:02:19]}  Qxf4 {[%clk 0:01:37]} 24. Nxe7+ {[%clk 0:02:05]}  Kh8 {[%clk 0:01:37]} 25. Qh5 {[%clk 0:01:43]}  Qh6 {[%clk 0:01:32]} 26. Qf3 {[%clk 0:01:39]}  a4 {[%clk 0:01:27]} 27. Nc6 {[%clk 0:01:35]}  Bd5 {[%clk 0:01:25]} 28. Qc3 {[%clk 0:01:26]}  Rac8 {[%clk 0:01:22]} 29. Qb4 {[%clk 0:01:24]}  Bxc6 {[%clk 0:01:20]} 30. Qxb6 {[%clk 0:01:14]}  Qg6 {[%clk 0:01:15]} 31. g3 {[%clk 0:01:09]}  Qg4 {[%clk 0:01:13]} 32. Rxe6 {[%clk 0:00:55]}  Qf3 {[%clk 0:01:11]} 33. Kf1 {[%clk 0:00:52]}  Qh1+ {[%clk 0:01:10]} 34. Ke2 {[%clk 0:00:52]}  Qxa1 {[%clk 0:01:09]} 35. Rxc6 {[%clk 0:00:51]}  Rxc6 {[%clk 0:01:09]} 36. Qxc6 {[%clk 0:00:49]}  Qxb2+ {[%clk 0:01:09]} 37. Kf1 {[%clk 0:00:46]}  a3 {[%clk 0:01:07]} 38. Qd6 {[%clk 0:00:43]}  Rb8 {[%clk 0:01:03]} 39. Qe6 {[%clk 0:00:42]}  a2 {[%clk 0:01:02]} 0-1


[Site "https://www.chess.com"]

[Event "Titled Tuesday Blitz February 22 Early 2022"]
[White "Kozak, Adam"]
[Black "Kozelov, Roman"]
[WhiteFideId "753246"]
[BlackFideId "14133377"]
[WhiteElo "2459"]
[BlackElo "2160"]
[Result "1-0"]
[Round "01"]
[TimeControl "180+1"]
[Date "2022.02.22"]
[WhiteClock "0:01:29"]
[BlackClock "0:00:09"]

1. Nf3 {[%clk 0:02:51]}  Nf6 {[%clk 0:02:59]} 2. g3 {[%clk 0:02:47]}  b5 {[%clk 0:02:57]} 3. e3 {[%clk 0:02:46]}  Bb7 {[%clk 0:02:58]} 4. Bxb5 {[%clk 0:02:45]}  Nc6 {[%clk 0:02:55]} 5. d4 {[%clk 0:02:43]}  g6 {[%clk 0:02:52]} 6. Bf1 {[%clk 0:02:42]}  Bg7 {[%clk 0:02:49]} 7. Bg2 {[%clk 0:02:42]}  O-O {[%clk 0:02:49]} 8. O-O {[%clk 0:02:42]}  Rb8 {[%clk 0:02:49]} 9. Nc3 {[%clk 0:02:42]}  d6 {[%clk 0:02:45]} 10. a3 {[%clk 0:02:39]}  e5 {[%clk 0:02:42]} 11. dxe5 {[%clk 0:02:39]}  dxe5 {[%clk 0:02:41]} 12. Qxd8 {[%clk 0:02:39]}  Rfxd8 {[%clk 0:02:41]} 13. b4 {[%clk 0:02:37]}  e4 {[%clk 0:01:58]} 14. Nd2 {[%clk 0:02:35]}  Nd5 {[%clk 0:01:55]} 15. Nxd5 {[%clk 0:02:28]}  Bxa1 {[%clk 0:01:52]} 16. Nxc7 {[%clk 0:02:28]}  f5 {[%clk 0:01:33]} 17. c4 {[%clk 0:02:20]}  Ne5 {[%clk 0:01:29]} 18. Ne6 {[%clk 0:02:12]}  Rd6 {[%clk 0:01:20]} 19. Nc5 {[%clk 0:02:11]}  Ba8 {[%clk 0:00:51]} 20. Ndb3 {[%clk 0:02:09]}  Bc3 {[%clk 0:00:38]} 21. Na4 {[%clk 0:02:07]}  Bxb4 {[%clk 0:00:30]} 22. axb4 {[%clk 0:02:07]}  Nxc4 {[%clk 0:00:22]} 23. Nd4 {[%clk 0:01:53]}  Rxb4 {[%clk 0:00:20]} 24. Nc3 {[%clk 0:01:52]}  a5 {[%clk 0:00:18]} 25. g4 {[%clk 0:01:52]}  Rdb6 {[%clk 0:00:14]} 26. gxf5 {[%clk 0:01:52]}  gxf5 {[%clk 0:00:13]} 27. Nxf5 {[%clk 0:01:52]}  a4 {[%clk 0:00:12]} 28. Ne7+ {[%clk 0:01:52]}  Kf7 {[%clk 0:00:12]} 29. Ned5 {[%clk 0:01:53]}  Bxd5 {[%clk 0:00:11]} 30. Nxd5 {[%clk 0:01:53]}  a3 {[%clk 0:00:11]} 31. Nxb6 {[%clk 0:01:52]}  Rxb6 {[%clk 0:00:12]} 32. Bxa3 {[%clk 0:01:47]}  Nxa3 {[%clk 0:00:11]} 33. Bxe4 {[%clk 0:01:47]}  Kg7 {[%clk 0:00:11]} 34. Rc1 {[%clk 0:01:46]}  Nb5 {[%clk 0:00:09]} 35. Bd3 {[%clk 0:01:40]}  Nd6 {[%clk 0:00:09]} 36. Rc7+ {[%clk 0:01:39]}  Kf6 {[%clk 0:00:09]} 37. Rxh7 {[%clk 0:01:39]}  Rb3 {[%clk 0:00:09]} 38. Rh6+ {[%clk 0:01:32]}  Ke7 {[%clk 0:00:09]} 39. Be2 {[%clk 0:01:31]}  Nf7 {[%clk 0:00:08]} 40. Rh7 {[%clk 0:01:30]}  Kf6 {[%clk 0:00:09]} 41. Rxf7+ {[%clk 0:01:29]} 1-0


[Site "https://www.chess.com"]

[Event "Titled Tuesday Blitz February 22 Early 2022"]
[White "Krzywda, Andrzej"]
[Black "Kravtsiv, Martyn"]
[WhiteFideId "1114565"]
[BlackFideId "14113147"]
[WhiteElo "2098"]
[BlackElo "2694"]
[Result "0-1"]
[Round "01"]
[TimeControl "180+1"]
[Date "2022.02.22"]
[WhiteClock "0:00:08"]
[BlackClock "0:00:15"]

1. d4 {[%clk 0:02:58]}  Nf6 {[%clk 0:02:58]} 2. Nf3 {[%clk 0:02:58]}  b6 {[%clk 0:02:54]} 3. g3 {[%clk 0:02:58]}  Bb7 {[%clk 0:02:54]} 4. Bg2 {[%clk 0:02:59]}  e6 {[%clk 0:02:54]} 5. O-O {[%clk 0:02:59]}  c5 {[%clk 0:02:54]} 6. dxc5 {[%clk 0:02:57]}  bxc5 {[%clk 0:02:51]} 7. c4 {[%clk 0:02:56]}  Be7 {[%clk 0:02:49]} 8. Nc3 {[%clk 0:02:54]}  O-O {[%clk 0:02:47]} 9. Qb3 {[%clk 0:02:52]}  Qb6 {[%clk 0:02:40]} 10. Qxb6 {[%clk 0:02:37]}  axb6 {[%clk 0:02:41]} 11. Bf4 {[%clk 0:02:37]}  d6 {[%clk 0:02:25]} 12. Rfd1 {[%clk 0:02:37]}  e5 {[%clk 0:02:24]} 13. Bg5 {[%clk 0:02:37]}  Rd8 {[%clk 0:01:44]} 14. Nb5 {[%clk 0:02:27]}  Na6 {[%clk 0:01:10]} 15. Nh4 {[%clk 0:02:17]}  Bxg2 {[%clk 0:01:07]} 16. Nxg2 {[%clk 0:02:18]}  Nb4 {[%clk 0:01:01]} 17. a3 {[%clk 0:01:59]}  Nc2 {[%clk 0:01:01]} 18. Rac1 {[%clk 0:02:00]}  Nd4 {[%clk 0:01:01]} 19. Nxd4 {[%clk 0:01:37]}  exd4 {[%clk 0:00:54]} 20. e3 {[%clk 0:01:37]}  h6 {[%clk 0:00:53]} 21. Bxf6 {[%clk 0:01:34]}  Bxf6 {[%clk 0:00:54]} 22. e4 {[%clk 0:01:30]}  Bg5 {[%clk 0:00:49]} 23. f4 {[%clk 0:01:27]}  Bf6 {[%clk 0:00:49]} 24. Ne1 {[%clk 0:01:27]}  Re8 {[%clk 0:00:49]} 25. Nd3 {[%clk 0:01:22]}  Rxe4 {[%clk 0:00:48]} 26. Re1 {[%clk 0:01:22]}  Re3 {[%clk 0:00:38]} 27. Rcd1 {[%clk 0:01:17]}  Rae8 {[%clk 0:00:37]} 28. Kf2 {[%clk 0:01:18]}  Kf8 {[%clk 0:00:36]} 29. b4 {[%clk 0:01:14]}  Ra8 {[%clk 0:00:33]} 30. Rxe3 {[%clk 0:01:07]}  dxe3+ {[%clk 0:00:34]} 31. Kxe3 {[%clk 0:01:08]}  Rxa3 {[%clk 0:00:34]} 32. bxc5 {[%clk 0:01:04]}  dxc5 {[%clk 0:00:33]} 33. Rb1 {[%clk 0:01:05]}  Bd4+ {[%clk 0:00:28]} 34. Ke2 {[%clk 0:00:55]}  Ra2+ {[%clk 0:00:26]} 35. Kf3 {[%clk 0:00:56]}  Ra3 {[%clk 0:00:26]} 36. Ke2 {[%clk 0:00:54]}  Ra6 {[%clk 0:00:26]} 37. Kf3 {[%clk 0:00:51]}  f5 {[%clk 0:00:26]} 38. g4 {[%clk 0:00:48]}  Ra3 {[%clk 0:00:24]} 39. Ke2 {[%clk 0:00:45]}  fxg4 {[%clk 0:00:23]} 40. Rxb6 {[%clk 0:00:45]}  Ra2+ {[%clk 0:00:24]} 41. Kf1 {[%clk 0:00:44]}  Rxh2 {[%clk 0:00:24]} 42. Rg6 {[%clk 0:00:21]}  Rd2 {[%clk 0:00:21]} 43. Ne5 {[%clk 0:00:18]}  Bxe5 {[%clk 0:00:20]} 44. fxe5 {[%clk 0:00:19]}  Rd4 {[%clk 0:00:21]} 45. e6 {[%clk 0:00:06]}  Rxc4 {[%clk 0:00:18]} 46. e7+ {[%clk 0:00:06]}  Kxe7 {[%clk 0:00:18]} 47. Rxg7+ {[%clk 0:00:06]}  Kf6 {[%clk 0:00:19]} 48. Rh7 {[%clk 0:00:07]}  Kg6 {[%clk 0:00:19]} 49. Rc7 {[%clk 0:00:06]}  Rc2 {[%clk 0:00:19]} 50. Kg1 {[%clk 0:00:06]}  h5 {[%clk 0:00:19]} 51. Rc8 {[%clk 0:00:06]}  h4 {[%clk 0:00:18]} 52. Rg8+ {[%clk 0:00:06]}  Kf5 {[%clk 0:00:18]} 53. Rf8+ {[%clk 0:00:07]}  Ke5 {[%clk 0:00:19]} 54. Kh1 {[%clk 0:00:06]}  c4 {[%clk 0:00:18]} 55. Kg1 {[%clk 0:00:07]}  c3 {[%clk 0:00:18]} 56. Kh1 {[%clk 0:00:07]}  Rd2 {[%clk 0:00:18]} 57. Re8+ {[%clk 0:00:06]}  Kd4 {[%clk 0:00:17]} 58. Rd8+ {[%clk 0:00:06]}  Kc4 {[%clk 0:00:17]} 59. Rc8+ {[%clk 0:00:06]}  Kd3 {[%clk 0:00:17]} 60. Rd8+ {[%clk 0:00:05]}  Ke2 {[%clk 0:00:15]} 61. Re8+ {[%clk 0:00:04]}  Kd1 {[%clk 0:00:15]} 62. Ra8 {[%clk 0:00:01]}  c2 {[%clk 0:00:15]} 63. Ra1+ {[%clk 0:00:02]}  c1=Q {[%clk 0:00:14]} 64. Rxc1+ {[%clk 0:00:03]}  Kxc1 {[%clk 0:00:15]} 65. Kg1 {[%clk 0:00:04]}  g3 {[%clk 0:00:13]} 66. Kh1 {[%clk 0:00:05]}  Rh2+ {[%clk 0:00:13]} 67. Kg1 {[%clk 0:00:06]}  Kc2 {[%clk 0:00:13]} 68. Kf1 {[%clk 0:00:06]}  Kd3 {[%clk 0:00:13]} 69. Kg1 {[%clk 0:00:06]}  Ke4 {[%clk 0:00:14]} 70. Kf1 {[%clk 0:00:07]}  Kf4 {[%clk 0:00:14]} 71. Kg1 {[%clk 0:00:08]}  Kf3 {[%clk 0:00:14]} 72. Kf1 {[%clk 0:00:08]}  Rh1# {[%clk 0:00:15]} 0-1


[Site "https://www.chess.com"]

[Event "Titled Tuesday Blitz February 22 Early 2022"]
[White "Lakshmi C"]
[Black "Cherniaiev, Tykhon"]
[WhiteFideId "25035347"]
[BlackFideId "14182360"]
[WhiteElo "1775"]
[BlackElo "2289"]
[Result "0-1"]
[Round "01"]
[TimeControl "180+1"]
[Date "2022.02.22"]
[WhiteClock "0:00:01"]
[BlackClock "0:01:14"]

1. e4 {[%clk 0:02:57]}  c5 {[%clk 0:02:59]} 2. f4 {[%clk 0:02:57]}  d5 {[%clk 0:02:58]} 3. exd5 {[%clk 0:02:57]}  Qxd5 {[%clk 0:02:56]} 4. Nf3 {[%clk 0:02:57]}  Nf6 {[%clk 0:02:56]} 5. Nc3 {[%clk 0:02:58]}  Qd8 {[%clk 0:02:57]} 6. Bc4 {[%clk 0:02:57]}  Nc6 {[%clk 0:02:55]} 7. O-O {[%clk 0:02:55]}  e6 {[%clk 0:02:56]} 8. d3 {[%clk 0:02:54]}  Bd6 {[%clk 0:02:56]} 9. a4 {[%clk 0:02:54]}  O-O {[%clk 0:02:55]} 10. Qe1 {[%clk 0:02:51]}  Re8 {[%clk 0:02:53]} 11. Bd2 {[%clk 0:02:48]}  e5 {[%clk 0:02:53]} 12. Qh4 {[%clk 0:02:43]}  exf4 {[%clk 0:02:48]} 13. Ng5 {[%clk 0:02:39]}  Ne5 {[%clk 0:02:44]} 14. Bxf4 {[%clk 0:01:32]}  Nxc4 {[%clk 0:02:42]} 15. dxc4 {[%clk 0:01:32]}  Bxf4 {[%clk 0:02:37]} 16. Rxf4 {[%clk 0:01:26]}  h6 {[%clk 0:02:34]} 17. Nf3 {[%clk 0:01:23]}  Be6 {[%clk 0:02:33]} 18. Rd1 {[%clk 0:01:20]}  Qe7 {[%clk 0:02:27]} 19. Rf1 {[%clk 0:01:14]}  Rad8 {[%clk 0:02:21]} 20. b3 {[%clk 0:00:43]}  Bc8 {[%clk 0:02:13]} 21. Qf2 {[%clk 0:00:37]}  Qe3 {[%clk 0:02:11]} 22. Qxe3 {[%clk 0:00:33]}  Rxe3 {[%clk 0:02:12]} 23. Nb5 {[%clk 0:00:33]}  a6 {[%clk 0:02:11]} 24. Nc7 {[%clk 0:00:32]}  Re7 {[%clk 0:02:09]} 25. Rxf6 {[%clk 0:00:29]}  gxf6 {[%clk 0:02:06]} 26. Nd5 {[%clk 0:00:30]}  Re2 {[%clk 0:02:05]} 27. c3 {[%clk 0:00:20]}  Kg7 {[%clk 0:02:02]} 28. Nh4 {[%clk 0:00:19]}  Be6 {[%clk 0:02:02]} 29. Nxf6 {[%clk 0:00:19]}  Rdd2 {[%clk 0:01:56]} 30. Nh5+ {[%clk 0:00:18]}  Kh8 {[%clk 0:01:51]} 31. Nf4 {[%clk 0:00:16]}  Re4 {[%clk 0:01:51]} 32. g3 {[%clk 0:00:14]}  Bg4 {[%clk 0:01:50]} 33. h3 {[%clk 0:00:12]}  Bd7 {[%clk 0:01:49]} 34. Nf3 {[%clk 0:00:12]}  Rd6 {[%clk 0:01:46]} 35. Rc1 {[%clk 0:00:08]}  b5 {[%clk 0:01:43]} 36. cxb5 {[%clk 0:00:08]}  axb5 {[%clk 0:01:43]} 37. a5 {[%clk 0:00:08]}  Bc6 {[%clk 0:01:43]} 38. Nh4 {[%clk 0:00:07]}  Bb7 {[%clk 0:01:30]} 39. Nf5 {[%clk 0:00:06]}  Rd2 {[%clk 0:01:29]} 40. b4 {[%clk 0:00:06]}  cxb4 {[%clk 0:01:18]} 41. cxb4 {[%clk 0:00:06]}  Rxb4 {[%clk 0:01:19]} 42. Nh5 {[%clk 0:00:03]}  Kh7 {[%clk 0:01:15]} 43. Nf4 {[%clk 0:00:01]}  Be4 {[%clk 0:01:13]} 44. Ne3 {[%clk 0:00:01]}  Rb1 {[%clk 0:01:12]} 45. Rxb1 {[%clk 0:00:01]}  Bxb1 {[%clk 0:01:13]} 46. Nf5 {[%clk 0:00:01]}  Bxf5 {[%clk 0:01:14]} 0-1


[Site "https://www.chess.com"]

[Event "Titled Tuesday Blitz February 22 Early 2022"]
[White "Leiva, Gianmarco"]
[Black "Matveeva, Olga"]
[WhiteFideId "3804399"]
[BlackFideId "24107018"]
[WhiteElo "2328"]
[BlackElo "2083"]
[Result "1-0"]
[Round "01"]
[TimeControl "180+1"]
[Date "2022.02.22"]
[WhiteClock "0:00:08"]
[BlackClock "0:00:12"]

1. e4 {[%clk 0:03:00]}  e6 {[%clk 0:02:57]} 2. Qe2 {[%clk 0:03:00]}  c5 {[%clk 0:02:50]} 3. f4 {[%clk 0:02:55]}  Ne7 {[%clk 0:02:41]} 4. Nf3 {[%clk 0:02:55]}  d5 {[%clk 0:02:39]} 5. d3 {[%clk 0:02:55]}  Nbc6 {[%clk 0:02:36]} 6. g3 {[%clk 0:02:56]}  g6 {[%clk 0:02:34]} 7. Bg2 {[%clk 0:02:53]}  Bg7 {[%clk 0:02:35]} 8. O-O {[%clk 0:02:53]}  O-O {[%clk 0:02:34]} 9. c3 {[%clk 0:02:49]}  b6 {[%clk 0:02:34]} 10. Nbd2 {[%clk 0:02:29]}  Bb7 {[%clk 0:02:31]} 11. Re1 {[%clk 0:02:27]}  dxe4 {[%clk 0:02:25]} 12. dxe4 {[%clk 0:02:27]}  Qc7 {[%clk 0:02:23]} 13. e5 {[%clk 0:02:21]}  Rad8 {[%clk 0:02:22]} 14. Ne4 {[%clk 0:02:18]}  Nd5 {[%clk 0:02:03]} 15. h4 {[%clk 0:02:02]}  h5 {[%clk 0:01:32]} 16. Nfg5 {[%clk 0:02:00]}  Nce7 {[%clk 0:01:26]} 17. Nd6 {[%clk 0:01:56]}  Ba8 {[%clk 0:01:13]} 18. Be4 {[%clk 0:01:45]}  Nf5 {[%clk 0:01:06]} 19. Nxf5 {[%clk 0:01:17]}  exf5 {[%clk 0:01:05]} 20. Bf3 {[%clk 0:01:17]}  Rfe8 {[%clk 0:00:40]} 21. c4 {[%clk 0:00:51]}  Nf6 {[%clk 0:00:40]} 22. Be3 {[%clk 0:00:45]}  Ng4 {[%clk 0:00:38]} 23. Bxa8 {[%clk 0:00:37]}  Rxa8 {[%clk 0:00:37]} 24. Qf3 {[%clk 0:00:36]}  Rad8 {[%clk 0:00:36]} 25. Rad1 {[%clk 0:00:35]}  a6 {[%clk 0:00:32]} 26. Bf2 {[%clk 0:00:31]}  b5 {[%clk 0:00:31]} 27. b3 {[%clk 0:00:30]}  Bf8 {[%clk 0:00:30]} 28. Rd5 {[%clk 0:00:28]}  bxc4 {[%clk 0:00:29]} 29. bxc4 {[%clk 0:00:27]}  Qa5 {[%clk 0:00:28]} 30. Red1 {[%clk 0:00:20]}  Rxd5 {[%clk 0:00:25]} 31. cxd5 {[%clk 0:00:21]}  Qxa2 {[%clk 0:00:25]} 32. d6 {[%clk 0:00:22]}  Rd8 {[%clk 0:00:24]} 33. Bxc5 {[%clk 0:00:18]}  Qc2 {[%clk 0:00:20]} 34. Qd5 {[%clk 0:00:11]}  Rd7 {[%clk 0:00:16]} 35. Rd2 {[%clk 0:00:10]}  Qc1+ {[%clk 0:00:16]} 36. Kg2 {[%clk 0:00:10]}  Qc3 {[%clk 0:00:15]} 37. e6 {[%clk 0:00:09]}  Rd8 {[%clk 0:00:12]} 38. e7 {[%clk 0:00:07]}  Bxe7 {[%clk 0:00:12]} 39. dxe7 {[%clk 0:00:08]}  Rxd5 {[%clk 0:00:12]} 40. e8=Q+ {[%clk 0:00:08]} 1-0


[Site "https://www.chess.com"]

[Event "Titled Tuesday Blitz February 22 Early 2022"]
[White "Liyanage, Ranindu Dilshan"]
[Black "Mejia, Cherry Ann"]
[WhiteFideId "9915834"]
[BlackFideId "5206880"]
[WhiteElo "1858"]
[BlackElo "2007"]
[Result "1-0"]
[Round "01"]
[TimeControl "180+1"]
[Date "2022.02.22"]
[WhiteClock "0:01:11"]
[BlackClock "0:00:10"]

1. d4 {[%clk 0:03:00]}  d5 {[%clk 0:03:00]} 2. c4 {[%clk 0:03:00]}  dxc4 {[%clk 0:03:00]} 3. e3 {[%clk 0:03:00]}  e5 {[%clk 0:03:00]} 4. Bxc4 {[%clk 0:02:59]}  exd4 {[%clk 0:03:01]} 5. exd4 {[%clk 0:03:00]}  Nf6 {[%clk 0:03:01]} 6. Nf3 {[%clk 0:03:00]}  Bd6 {[%clk 0:03:02]} 7. Qe2+ {[%clk 0:03:00]}  Qe7 {[%clk 0:02:59]} 8. Qxe7+ {[%clk 0:03:00]}  Bxe7 {[%clk 0:03:00]} 9. Nc3 {[%clk 0:02:59]}  O-O {[%clk 0:03:00]} 10. O-O {[%clk 0:02:59]}  a6 {[%clk 0:02:58]} 11. Bf4 {[%clk 0:02:57]}  c5 {[%clk 0:02:49]} 12. Rfe1 {[%clk 0:02:36]}  Re8 {[%clk 0:02:42]} 13. Ng5 {[%clk 0:02:30]}  Be6 {[%clk 0:02:27]} 14. Nxe6 {[%clk 0:02:25]}  fxe6 {[%clk 0:02:28]} 15. Bxe6+ {[%clk 0:02:25]}  Kf8 {[%clk 0:02:25]} 16. d5 {[%clk 0:02:26]}  Nbd7 {[%clk 0:02:18]} 17. g4 {[%clk 0:02:16]}  h6 {[%clk 0:01:58]} 18. Re3 {[%clk 0:02:03]}  b5 {[%clk 0:01:57]} 19. d6 {[%clk 0:01:48]}  Bd8 {[%clk 0:01:55]} 20. Rae1 {[%clk 0:01:38]}  Ba5 {[%clk 0:01:54]} 21. g5 {[%clk 0:01:33]}  hxg5 {[%clk 0:01:54]} 22. Bxg5 {[%clk 0:01:33]}  c4 {[%clk 0:01:44]} 23. Rh3 {[%clk 0:01:29]}  Ng8 {[%clk 0:01:06]} 24. Rh8 {[%clk 0:01:24]}  Rxe6 {[%clk 0:00:33]} 25. Rxe6 {[%clk 0:01:25]}  Bxc3 {[%clk 0:00:24]} 26. bxc3 {[%clk 0:01:22]}  Rc8 {[%clk 0:00:18]} 27. Re7 {[%clk 0:01:17]}  Nc5 {[%clk 0:00:13]} 28. d7 {[%clk 0:01:13]}  Nxd7 {[%clk 0:00:13]} 29. Rxd7 {[%clk 0:01:14]}  a5 {[%clk 0:00:11]} 30. Rd8+ {[%clk 0:01:13]}  Rxd8 {[%clk 0:00:11]} 31. Bxd8 {[%clk 0:01:14]}  b4 {[%clk 0:00:11]} 32. cxb4 {[%clk 0:01:10]}  axb4 {[%clk 0:00:11]} 33. Ba5 {[%clk 0:01:09]}  b3 {[%clk 0:00:09]} 34. axb3 {[%clk 0:01:09]}  cxb3 {[%clk 0:00:10]} 35. Rh3 {[%clk 0:01:10]}  Kf7 {[%clk 0:00:10]} 36. Rxb3 {[%clk 0:01:10]}  Nf6 {[%clk 0:00:10]} 37. Bc3 {[%clk 0:01:11]} 1-0


[Site "https://www.chess.com"]

[Event "Titled Tuesday Blitz February 22 Early 2022"]
[White "Lodici, Lorenzo"]
[Black "Dushyant Sharma"]
[WhiteFideId "884189"]
[BlackFideId "25065130"]
[WhiteElo "2265"]
[BlackElo "2012"]
[Result "1-0"]
[Round "01"]
[TimeControl "180+1"]
[Date "2022.02.22"]
[WhiteClock "0:00:47"]
[BlackClock "0:00:08"]

1. e4 {[%clk 0:03:00]}  d5 {[%clk 0:02:57]} 2. exd5 {[%clk 0:02:57]}  Nf6 {[%clk 0:02:57]} 3. Nf3 {[%clk 0:02:49]}  Bg4 {[%clk 0:02:57]} 4. Be2 {[%clk 0:02:49]}  Qxd5 {[%clk 0:02:57]} 5. h3 {[%clk 0:02:47]}  Bh5 {[%clk 0:02:57]} 6. d4 {[%clk 0:02:45]}  e6 {[%clk 0:02:53]} 7. c4 {[%clk 0:02:45]}  Qd8 {[%clk 0:02:52]} 8. Nc3 {[%clk 0:02:44]}  Nc6 {[%clk 0:02:51]} 9. Be3 {[%clk 0:02:39]}  Be7 {[%clk 0:02:49]} 10. O-O {[%clk 0:02:39]}  O-O {[%clk 0:02:48]} 11. Qd2 {[%clk 0:02:34]}  Qd7 {[%clk 0:02:44]} 12. Rad1 {[%clk 0:02:31]}  Rad8 {[%clk 0:02:44]} 13. Qc1 {[%clk 0:02:28]}  Qc8 {[%clk 0:02:43]} 14. a3 {[%clk 0:02:25]}  a5 {[%clk 0:02:40]} 15. Rfe1 {[%clk 0:02:20]}  Rfe8 {[%clk 0:02:38]} 16. g4 {[%clk 0:02:19]}  Bg6 {[%clk 0:02:37]} 17. Nh4 {[%clk 0:02:19]}  Nd7 {[%clk 0:01:34]} 18. Nxg6 {[%clk 0:02:19]}  hxg6 {[%clk 0:01:35]} 19. f4 {[%clk 0:02:16]}  Bh4 {[%clk 0:01:34]} 20. Rf1 {[%clk 0:02:15]}  Nb6 {[%clk 0:01:31]} 21. Ne4 {[%clk 0:02:12]}  f5 {[%clk 0:01:22]} 22. Ng5 {[%clk 0:02:02]}  Bxg5 {[%clk 0:01:21]} 23. fxg5 {[%clk 0:02:03]}  e5 {[%clk 0:01:19]} 24. d5 {[%clk 0:01:59]}  Nd4 {[%clk 0:01:17]} 25. Bxd4 {[%clk 0:01:57]}  exd4 {[%clk 0:01:18]} 26. Qc2 {[%clk 0:01:52]}  c6 {[%clk 0:01:14]} 27. gxf5 {[%clk 0:01:48]}  gxf5 {[%clk 0:01:06]} 28. Rxd4 {[%clk 0:01:47]}  cxd5 {[%clk 0:01:06]} 29. c5 {[%clk 0:01:47]}  Nd7 {[%clk 0:00:31]} 30. Rxd5 {[%clk 0:01:47]}  Ne5 {[%clk 0:00:26]} 31. Rxd8 {[%clk 0:01:39]}  Qxd8 {[%clk 0:00:26]} 32. Qxf5 {[%clk 0:01:37]}  Qd4+ {[%clk 0:00:24]} 33. Qf2 {[%clk 0:01:30]}  Qd8 {[%clk 0:00:23]} 34. h4 {[%clk 0:01:29]}  Kh8 {[%clk 0:00:20]} 35. b4 {[%clk 0:01:26]}  Ng6 {[%clk 0:00:20]} 36. Bh5 {[%clk 0:01:23]}  Qd3 {[%clk 0:00:13]} 37. Rd1 {[%clk 0:01:14]}  Qe4 {[%clk 0:00:11]} 38. Rd4 {[%clk 0:01:10]}  Qb1+ {[%clk 0:00:10]} 39. Kh2 {[%clk 0:01:07]}  Rf8 {[%clk 0:00:11]} 40. Qe2 {[%clk 0:00:48]}  Nf4 {[%clk 0:00:09]} 41. Rxf4 {[%clk 0:00:47]}  Rxf4 {[%clk 0:00:08]} 42. Qe8+ {[%clk 0:00:47]}  Rf8 {[%clk 0:00:08]} 43. Qxf8+ {[%clk 0:00:47]} 1-0


[Site "https://www.chess.com"]